fUST/lending_fUST_20250130
["ID","MTS","AMOUNT","RATE_DAILY","PERIOD"]
[350937239,1738223435921,-151.0,0.00016999,2]
[350937240,1738223435930,-151.0,0.00016999,2]
[350937241,1738223435940,-262.734523,0.00016999,2]
[350937242,1738223435950,-2000.0,0.00017,2]
[350937243,1738223435959,-1000.0,0.00017,17]
[350937244,1738223435969,-2000.0,0.00017,2]
[350937245,1738223435978,-151.0,0.00017,2]
[350937246,1738223435988,-9674.16192022,0.00017,3]
[350937247,1738223435997,-151.0,0.00017,2]
[350937248,1738223436007,-227.081772,0.00017,2]
[350937249,1738223436016,-151.0,0.00017,2]
[350937250,1738223436026,-161.0,0.00017024,2]
[350937251,1738223436035,-161.84,0.00017024,2]
[350937252,1738223436045,-249.23,0.00017026,2]
[350937253,1738223436057,-154.3,0.00017026,2]
[350937254,1738223436067,-151.0,0.00017122,2]
[350937255,1738223436076,-160.0,0.00017122,2]
[350937256,1738223436086,-151.0,0.00017123,2]
[350937257,1738223436095,-199.78,0.00017123,2]
[350937258,1738223436105,-500.0,0.00017123,2]
[350937259,1738223436114,-500.0,0.00017123,2]
[350937260,1738223436125,-200.92752771,0.00017123,2]
[350937261,1738223436135,-2368.31,0.00017123,2]
[350937262,1738223436145,-500.0,0.00017123,2]
[350937263,1738223436154,-686.41,0.00017123,2]
[350937264,1738223436163,-500.0,0.00017123,2]
[350937265,1738223436173,-500.0,0.00017123,2]
[350937266,1738223436183,-901.84,0.00017123,2]
[350937267,1738223436192,-670.07,0.00017123,2]
[350937268,1738223436202,-548.98,0.00017123,2]
[350937269,1738223436211,-500.0,0.00017123,2]
[350937270,1738223436221,-500.0,0.00017123,2]
[350937271,1738223436230,-561.63,0.00017123,2]
[350937272,1738223436239,-1600.68,0.00017123,2]
[350937273,1738223436249,-4259.83,0.00017123,2]
[350937274,1738223436258,-1252.06,0.00017123,2]
[350937275,1738223436267,-2536.89,0.00017123,2]
[350937276,1738223436277,-500.0,0.00017123,2]
[350937277,1738223436286,-500.0,0.00017123,2]
[350937278,1738223436295,-500.0,0.00017123,2]
[350937279,1738223436305,-937.5,0.00017123,2]
[350937280,1738223436314,-761.09,0.00017123,2]
[350937281,1738223436323,-625.71,0.00017123,2]
[350937282,1738223436333,-500.0,0.00017123,2]
[350937283,1738223436342,-500.0,0.00017123,2]
[350937284,1738223436351,-500.0,0.00017123,2]
[350937285,1738223436361,-500.0,0.00017123,2]
[350937286,1738223436371,-1130.54,0.00017123,2]
[350937287,1738223436380,-575.46,0.00017123,2]
[350937288,1738223436389,-500.0,0.00017123,2]
[350937289,1738223436398,-500.0,0.00017123,2]
[350937290,1738223436407,-500.0,0.00017123,2]
[350937291,1738223436417,-666.57,0.00017123,2]
[350937292,1738223436426,-10753.13,0.00017123,2]
[350937293,1738223436435,-906.16,0.00017123,2]
[350937294,1738223436445,-629.52,0.00017123,2]
[350937295,1738223436454,-1352.79,0.00017123,2]
[350937296,1738223436464,-500.0,0.00017123,2]
[350937297,1738223436589,-1055.87748107,0.0001716,2]
[350937298,1738223436599,-3690.21,0.000172,2]
[350937299,1738223436609,-151.0,0.000172,2]
[350937300,1738223436618,-151.0,0.000172,2]
[350937301,1738223436629,-22588.85893931,0.00017223,2]
[350937302,1738223436639,-160.0,0.00017259,2]
[350937303,1738223436648,-151.0,0.0001726,2]
[350937304,1738223436659,-151.0,0.0001726,2]
[350937305,1738223436669,-151.0,0.0001726,2]
[350937306,1738223436678,-151.0,0.0001726,2]
[350937307,1738223436688,-151.0,0.0001726,2]
[350937308,1738223436697,-151.0,0.0001726,2]
[350937309,1738223436706,-500.0,0.0001726,2]
[350937310,1738223436715,-500.0,0.0001726,2]
[350937311,1738223436724,-2368.31,0.0001726,2]
[350937312,1738223436734,-500.0,0.0001726,2]
[350937313,1738223436744,-686.41,0.0001726,2]
[350937314,1738223436754,-500.0,0.0001726,2]
[350937315,1738223436763,-500.0,0.0001726,2]
[350937316,1738223436773,-901.84,0.0001726,2]
[350937317,1738223436782,-670.07,0.0001726,2]
[350937318,1738223436791,-548.98,0.0001726,2]
[350937319,1738223436801,-500.0,0.0001726,2]
[350937320,1738223436810,-500.0,0.0001726,2]
[350937321,1738223436820,-561.63,0.0001726,2]
[350937322,1738223436829,-1600.68,0.0001726,2]
[350937323,1738223436838,-4259.83,0.0001726,2]
[350937324,1738223436849,-1252.06,0.0001726,2]
[350937325,1738223436858,-2536.89,0.0001726,2]
[350937326,1738223436867,-500.0,0.0001726,2]
[350937327,1738223436877,-500.0,0.0001726,2]
[350937328,1738223436887,-500.0,0.0001726,2]
[350937329,1738223436896,-937.5,0.0001726,2]
[350937330,1738223436905,-761.09,0.0001726,2]
[350937331,1738223436915,-625.71,0.0001726,2]
[350937332,1738223436926,-500.0,0.0001726,2]
[350937333,1738223436935,-166.72125176,0.0001726,2]
[350937334,1738223436944,-500.0,0.0001726,2]
[350937335,1738223436954,-500.0,0.0001726,2]
[350937336,1738223436963,-1130.54,0.0001726,2]
[350937337,1738223436973,-575.46,0.0001726,2]
[350937338,1738223436982,-500.0,0.0001726,2]
[350937339,1738223436992,-500.0,0.0001726,2]
[350937340,1738223437001,-500.0,0.0001726,2]
[350937341,1738223437010,-666.57,0.0001726,2]
[350937342,1738223437020,-10753.13,0.0001726,2]
[350937343,1738223437029,-906.16,0.0001726,2]
[350937344,1738223437038,-629.52,0.0001726,2]
[350937345,1738223437048,-1352.79,0.0001726,2]
[350937346,1738223437061,-500.0,0.0001726,2]
[350937347,1738223437071,-500.0,0.00017279,2]
[350937348,1738223437080,-158.45238397,0.00017279,2]
[350937349,1738223437091,-164.22521803,0.00017279,2]
[350937350,1738223437100,-500.0,0.00017279,2]
[350937352,1738223437110,-402.47716148,0.00017279,2]
[350937353,1738223437119,-502.24069949,0.00017279,2]
[350937354,1738223437128,-269.81276306,0.00017279,2]
[350937355,1738223437139,-506.71146989,0.00017279,2]
[350937356,1738223437148,-187.11928511,0.00017279,2]
[350937357,1738223437157,-260.94530231,0.00017279,2]
[350937358,1738223437166,-500.0,0.00017289,2]
[350937359,1738223437176,-500.0,0.00017289,2]
[350937360,1738223437185,-2000.0,0.000173,2]
[350937361,1738223437194,-151.0,0.000173,2]
[350937362,1738223437204,-500.0,0.00017303,2]
[350937363,1738223437213,-401.03253569,0.00017303,2]
[350937364,1738223437223,-500.31591144,0.00017303,2]
[350937365,1738223437232,-168.02212358,0.00017303,2]
[350937366,1738223437241,-320.41890928,0.00017303,2]
[350937367,1738223437250,-168.01816828,0.00017303,2]
[350937368,1738223437259,-500.0,0.00017303,2]
[350937369,1738223437269,-500.0,0.00017303,2]
[350937370,1738223437278,-250.26273377,0.00017303,2]
[350937371,1738223437287,-500.0,0.00017303,2]
[350937372,1738223437297,-175.59108659,0.00017303,2]
[350937373,1738223437306,-477.98312727,0.00017303,2]
[350937374,1738223437315,-151.47090448,0.00017303,2]
[350937375,1738223437324,-151.0,0.00017397,2]
[350937376,1738223437334,-151.0,0.00017397,2]
[350937377,1738223437342,-500.0,0.00017397,2]
[350937378,1738223437352,-386.24524198,0.00017397,2]
[350937379,1738223437361,-2368.31,0.00017397,2]
[350937380,1738223437370,-500.0,0.00017397,2]
[350937381,1738223437379,-686.41,0.00017397,2]
[350937382,1738223437388,-500.0,0.00017397,2]
[350937383,1738223437397,-500.0,0.00017397,2]
[350937384,1738223437406,-901.84,0.00017397,2]
[350937385,1738223437416,-670.07,0.00017397,2]
[350937386,1738223437426,-548.98,0.00017397,2]
[350937387,1738223437435,-500.0,0.00017397,2]
[350937388,1738223437444,-500.0,0.00017397,2]
[350937389,1738223437453,-561.63,0.00017397,2]
[350937390,1738223437463,-1600.68,0.00017397,2]
[350937391,1738223437472,-4259.83,0.00017397,2]
[350937392,1738223437483,-1252.06,0.00017397,2]
[350937393,1738223437493,-2536.89,0.00017397,2]
[350937394,1738223437502,-500.0,0.00017397,2]
[350937395,1738223437512,-500.0,0.00017397,2]
[350937396,1738223437522,-500.0,0.00017397,2]
[350937397,1738223437532,-937.5,0.00017397,2]
[350937398,1738223437541,-761.09,0.00017397,2]
[350937399,1738223437551,-625.71,0.00017397,2]
[350937400,1738223437562,-500.0,0.00017397,2]
[350937401,1738223437571,-500.0,0.00017397,2]
[350937402,1738223437581,-500.0,0.00017397,2]
[350937403,1738223437590,-1130.54,0.00017397,2]
[350937404,1738223437599,-575.46,0.00017397,2]
[350937405,1738223437608,-500.0,0.00017397,2]
[350937406,1738223437617,-500.0,0.00017397,2]
[350937407,1738223437626,-500.0,0.00017397,2]
[350937408,1738223437635,-666.57,0.00017397,2]
[350937409,1738223437645,-10753.13,0.00017397,2]
[350937410,1738223437654,-906.16,0.00017397,2]
[350937411,1738223437663,-629.52,0.00017397,2]
[350937412,1738223437672,-1352.79,0.00017397,2]
[350937413,1738223437681,-500.0,0.00017397,2]
[350937414,1738223437690,-707.929774,0.00017452,2]
[350937415,1738223437699,-151.0,0.000175,2]
[350937416,1738223437708,-151.0,0.00017534,2]
[350937417,1738223437717,-151.0,0.00017534,2]
[350937418,1738223437726,-500.0,0.00017534,2]
[350937419,1738223437735,-2368.31,0.00017534,2]
[350937420,1738223437744,-500.0,0.00017534,2]
[350937421,1738223437753,-686.41,0.00017534,2]
[350937422,1738223437763,-500.0,0.00017534,2]
[350937423,1738223437772,-500.0,0.00017534,2]
[350937424,1738223437781,-901.84,0.00017534,2]
[350937425,1738223437791,-670.07,0.00017534,2]
[350937426,1738223437800,-548.98,0.00017534,2]
[350937427,1738223437809,-500.0,0.00017534,2]
[350937428,1738223437819,-500.0,0.00017534,2]
[350937429,1738223437828,-561.63,0.00017534,2]
[350937430,1738223437838,-1600.68,0.00017534,2]
[350937431,1738223437846,-4259.83,0.00017534,2]
[350937432,1738223437855,-1252.06,0.00017534,2]
[350937433,1738223437865,-2536.89,0.00017534,2]
[350937434,1738223437875,-500.0,0.00017534,2]
[350937435,1738223437884,-500.0,0.00017534,2]
[350937436,1738223437894,-500.0,0.00017534,2]
[350937437,1738223437904,-937.5,0.00017534,2]
[350937438,1738223437914,-761.09,0.00017534,2]
[350937439,1738223437924,-625.71,0.00017534,2]
[350937440,1738223437934,-500.0,0.00017534,2]
[350937441,1738223437943,-500.0,0.00017534,2]
[350937442,1738223437952,-500.0,0.00017534,2]
[350937443,1738223437962,-1130.54,0.00017534,2]
[350937444,1738223437971,-575.46,0.00017534,2]
[350937445,1738223437980,-500.0,0.00017534,2]
[350937446,1738223437990,-500.0,0.00017534,2]
[350937447,1738223437999,-500.0,0.00017534,2]
[350937448,1738223438009,-666.57,0.00017534,2]
[350937449,1738223438018,-10753.13,0.00017534,2]
[350937450,1738223438028,-906.16,0.00017534,2]
[350937451,1738223438037,-629.52,0.00017534,2]
[350937452,1738223438046,-1352.79,0.00017534,2]
[350937453,1738223438058,-500.0,0.00017534,2]
[350937454,1738223438068,-354.2307862,0.00017534,2]
[350937455,1738223438077,-154.1761492,0.00017589,2]
[350937456,1738223438087,-218.246188,0.00017589,2]
[350937457,1738223438097,-913.17,0.00017671,2]
[350937458,1738223438107,-151.0,0.00017671,2]
[350937459,1738223438116,-151.0,0.00017671,2]
[350937460,1738223438125,-340.32479487,0.00017671,2]
[350937461,1738223438135,-2368.31,0.00017671,2]
[350937462,1738223438145,-500.0,0.00017671,2]
[350937463,1738223438154,-686.41,0.00017671,2]
[350937464,1738223438163,-500.0,0.00017671,2]
[350937465,1738223438174,-500.0,0.00017671,2]
[350937466,1738223438183,-901.84,0.00017671,2]
[350937467,1738223438192,-670.07,0.00017671,2]
[350937468,1738223438202,-548.98,0.00017671,2]
[350937469,1738223438211,-500.0,0.00017671,2]
[350937470,1738223438221,-500.0,0.00017671,2]
[350937471,1738223438230,-561.63,0.00017671,2]
[350937472,1738223438239,-1600.68,0.00017671,2]
[350937473,1738223438249,-4259.83,0.00017671,2]
[350937475,1738223438258,-1252.06,0.00017671,2]
[350937476,1738223438267,-2536.89,0.00017671,2]
[350937477,1738223438278,-500.0,0.00017671,2]
[350937479,1738223438287,-500.0,0.00017671,2]
[350937481,1738223438296,-500.0,0.00017671,2]
[350937482,1738223438305,-937.5,0.00017671,2]
[350937483,1738223438315,-761.09,0.00017671,2]
[350937484,1738223438324,-625.71,0.00017671,2]
[350937485,1738223438333,-500.0,0.00017671,2]
[350937486,1738223438343,-500.0,0.00017671,2]
[350937487,1738223438352,-500.0,0.00017671,2]
[350937488,1738223438362,-1130.54,0.00017671,2]
[350937489,1738223438371,-575.46,0.00017671,2]
[350937490,1738223438380,-500.0,0.00017671,2]
[350937491,1738223438390,-500.0,0.00017671,2]
[350937492,1738223438399,-500.0,0.00017671,2]
[350937493,1738223438409,-666.57,0.00017671,2]
[350937494,1738223438419,-10753.13,0.00017671,2]
[350937495,1738223438428,-906.16,0.00017671,2]
[350937496,1738223438437,-629.52,0.00017671,2]
[350937497,1738223438446,-1352.79,0.00017671,2]
[350937498,1738223438455,-500.0,0.00017671,2]
[350937499,1738223438465,-151.0,0.000177,2]
[350937500,1738223438473,-746.45023203,0.0001778,2]
[350937501,1738223438482,-151.0,0.000178,2]
[350937502,1738223438492,-913.17,0.00017808,2]
[350937503,1738223438501,-154.565545,0.00017808,2]
[350937504,1738223438510,-2368.31,0.00017808,2]
[350937505,1738223438520,-500.0,0.00017808,2]
[350937506,1738223438529,-686.41,0.00017808,2]
[350937507,1738223438539,-500.0,0.00017808,2]
[350937508,1738223438548,-597.0937968,0.00017808,2]
[350937509,1738223438557,-901.84,0.00017808,2]
[350937511,1738223438566,-670.07,0.00017808,2]
[350937513,1738223438575,-548.98,0.00017808,2]
[350937515,1738223438584,-500.0,0.00017808,2]
[350937516,1738223438594,-500.0,0.00017808,2]
[350937518,1738223438603,-561.63,0.00017808,2]
[350937520,1738223438612,-1600.68,0.00017808,2]
[350937522,1738223438621,-4259.83,0.00017808,2]
[350937524,1738223438630,-1252.06,0.00017808,2]
[350937526,1738223438640,-2536.89,0.00017808,2]
[350937528,1738223438649,-500.0,0.00017808,2]
[350937530,1738223438658,-500.0,0.00017808,2]
[350937532,1738223438667,-500.0,0.00017808,2]
[350937534,1738223438677,-937.5,0.00017808,2]
[350937536,1738223438686,-761.09,0.00017808,2]
[350937538,1738223438695,-625.71,0.00017808,2]
[350937540,1738223438707,-500.0,0.00017808,2]
[350937542,1738223438717,-177.6389272,0.00017808,2]
[350937544,1738223438726,-500.0,0.00017808,2]
[350937546,1738223438735,-1130.54,0.00017808,2]
[350937548,1738223438745,-575.46,0.00017808,2]
[350937550,1738223438754,-500.0,0.00017808,2]
[350937552,1738223438763,-500.0,0.00017808,2]
[350937554,1738223438772,-500.0,0.00017808,2]
[350937556,1738223438782,-666.57,0.00017808,2]
[350937558,1738223438791,-10753.13,0.00017808,2]
[350937560,1738223438800,-906.16,0.00017808,2]
[350937562,1738223438809,-629.52,0.00017808,2]
[350937564,1738223438818,-1352.79,0.00017808,2]
[350937566,1738223438827,-500.0,0.00017808,2]
[350937568,1738223438837,-1000.0,0.00017827,2]
[350937570,1738223438846,-500.0,0.00017851,2]
[350937572,1738223438855,-1000.0,0.00017851,2]
[350937574,1738223438864,-500.59366168,0.00017873,2]
[350937575,1738223438873,-500.0000009,0.0001789,2]
[350937577,1738223438882,-160.0,0.00017899,2]
[350937579,1738223438891,-1881.27871175,0.000179,2]
[350937581,1738223438900,-1881.27871172,0.000179,2]
[350937583,1738223438909,-1881.27871172,0.000179,2]
[350937585,1738223438918,-1881.27871172,0.000179,2]
[350937587,1738223438927,-2877.40207251,0.000179,2]
[350937589,1738223438936,-2877.40207248,0.000179,2]
[350937591,1738223438945,-2877.40207248,0.000179,2]
[350937593,1738223438955,-2877.40207248,0.000179,2]
[350937595,1738223438963,-983.08335562,0.000179,2]
[350937597,1738223438973,-983.08335561,0.000179,2]
[350937599,1738223438982,-983.08335561,0.000179,2]
[350937601,1738223438991,-983.08335561,0.000179,2]
[350937602,1738223439000,-9085.5193538,0.000179,2]
[350937603,1738223439009,-296.56046668,0.000179,2]
[350937604,1738223439018,-296.56046666,0.000179,2]
[350937605,1738223439027,-296.56046666,0.000179,2]
[350937606,1738223439036,-14928.79985289,0.000179,2]
[350937607,1738223439045,-7932.35368077,0.000179,2]
[350937608,1738223439058,-865.5185215,0.000179,2]
[350937609,1738223439067,-865.51852147,0.000179,2]
[350937610,1738223439076,-865.51852147,0.000179,2]
[350937611,1738223439085,-865.51852147,0.000179,2]
[350937612,1738223439095,-1236.78689261,0.000179,2]
[350937613,1738223439104,-1236.7868926,0.000179,2]
[350937614,1738223439113,-1236.7868926,0.000179,2]
[350937616,1738223439122,-1236.7868926,0.000179,2]
[350937618,1738223439133,-5978.03,0.000179,2]
[350937620,1738223439142,-7077.55,0.000179,2]
[350937622,1738223439151,-151.0,0.000179,2]
[350937624,1738223439160,-913.17,0.00017945,2]
[350937626,1738223439169,-2368.31,0.00017945,2]
[350937628,1738223439179,-500.0,0.00017945,2]
[350937630,1738223439187,-686.41,0.00017945,2]
[350937632,1738223439196,-500.0,0.00017945,2]
[350937634,1738223439205,-901.84,0.00017945,2]
[350937635,1738223439214,-670.07,0.00017945,2]
[350937637,1738223439223,-548.98,0.00017945,2]
[350937639,1738223439232,-500.0,0.00017945,2]
[350937641,1738223439242,-403.90555439,0.00017945,2]
[350937643,1738223439251,-561.63,0.00017945,2]
[350937655,1738223439357,-1600.68,0.00017945,2]
[350937657,1738223439367,-4259.83,0.00017945,2]
[350937659,1738223439376,-1252.06,0.00017945,2]
[350937661,1738223439386,-2536.89,0.00017945,2]
[350937663,1738223439395,-500.0,0.00017945,2]
[350937665,1738223439404,-500.0,0.00017945,2]
[350937667,1738223439414,-500.0,0.00017945,2]
[350937669,1738223439424,-937.5,0.00017945,2]
[350937671,1738223439433,-761.09,0.00017945,2]
[350937673,1738223439442,-625.71,0.00017945,2]
[350937675,1738223439451,-500.0,0.00017945,2]
[350937677,1738223439462,-500.0,0.00017945,2]
[350937679,1738223439471,-1130.54,0.00017945,2]
[350937681,1738223439480,-575.46,0.00017945,2]
[350937683,1738223439490,-500.0,0.00017945,2]
[350937685,1738223439499,-500.0,0.00017945,2]
[350937687,1738223439508,-500.0,0.00017945,2]
[350937689,1738223439518,-666.57,0.00017945,2]
[350937691,1738223439527,-10753.13,0.00017945,2]
[350937693,1738223439537,-906.16,0.00017945,2]
[350937695,1738223439546,-629.52,0.00017945,2]
[350937697,1738223439555,-1352.79,0.00017945,2]
[350937698,1738223439566,-500.0,0.00017945,2]
[350937700,1738223439575,-420.0,0.00017963,2]
[350937702,1738223439584,-1000.0,0.00018,18]
[350937704,1738223439594,-780.08,0.00018,2]
[350937706,1738223439603,-499.94,0.00018,2]
[350937708,1738223439612,-500.0,0.00018,2]
[350937710,1738223439621,-600.0,0.00018,2]
[350937712,1738223439631,-1378.0,0.00018,2]
[350937714,1738223439640,-189.0,0.00018,2]
[350937716,1738223439649,-10297.34,0.00018,2]
[350937718,1738223439658,-2298.60708422,0.00018,7]
[350937720,1738223439668,-2000.0,0.00018,2]
[350937722,1738223439678,-2000.0,0.00018,2]
[350937724,1738223439687,-151.0,0.00018,2]
[350937726,1738223439697,-188.69,0.00018,2]
[350937728,1738223439707,-913.17,0.00018082,2]
[350937730,1738223439716,-2368.31,0.00018082,2]
[350937732,1738223439725,-500.0,0.00018082,2]
[350937734,1738223439735,-686.41,0.00018082,2]
[350937736,1738223439744,-500.0,0.00018082,2]
[350937738,1738223439753,-901.84,0.00018082,2]
[350937740,1738223439763,-670.07,0.00018082,2]
[350937743,1738223439772,-548.98,0.00018082,2]
[350937744,1738223439781,-500.0,0.00018082,2]
[350937747,1738223439791,-561.63,0.00018082,2]
[350937748,1738223439800,-1600.68,0.00018082,2]
[350937750,1738223439809,-4259.83,0.00018082,2]
[350937752,1738223439818,-1252.06,0.00018082,2]
[350937754,1738223439827,-2536.89,0.00018082,2]
[350937756,1738223439837,-500.0,0.00018082,2]
[350937758,1738223439846,-500.0,0.00018082,2]
[350937760,1738223439855,-500.0,0.00018082,2]
[350937761,1738223439864,-937.5,0.00018082,2]
[350937762,1738223439873,-761.09,0.00018082,2]
[350937764,1738223439882,-625.71,0.00018082,2]
[350937765,1738223439892,-500.0,0.00018082,2]
[350937767,1738223439904,-500.0,0.00018082,2]
[350937768,1738223439913,-1130.54,0.00018082,2]
[350937770,1738223439923,-575.46,0.00018082,2]
[350937771,1738223439933,-500.0,0.00018082,2]
[350937773,1738223439943,-500.0,0.00018082,2]
[350937775,1738223439953,-500.0,0.00018082,2]
[350937776,1738223439962,-666.57,0.00018082,2]
[350937778,1738223439972,-10753.13,0.00018082,2]
[350937779,1738223439982,-906.16,0.00018082,2]
[350937781,1738223439991,-629.52,0.00018082,2]
[350937782,1738223440000,-1352.79,0.00018082,2]
[350937784,1738223440009,-500.0,0.00018082,2]
[350937785,1738223440019,-151.0,0.000181,2]
[350937787,1738223440029,-151.0,0.000181,2]
[350937788,1738223440039,-151.0,0.000182,2]
[350937789,1738223440048,-300.0,0.000182,7]
[350937791,1738223440062,-913.17,0.00018219,2]
[350937793,1738223440071,-282.92145217,0.00018219,2]
[350937808,1738223440292,-395.0,0.00016737,2]
[350937809,1738223440302,-4570.37987732,0.00016899,5]
[350937820,1738223440408,-22349.77540309,0.00016899,5]
[350937822,1738223440417,-1200.0,0.00017397,2]
[350937824,1738223440428,-2085.38854783,0.00018219,2]
[350937825,1738223440438,-500.0,0.00018219,2]
[350937827,1738223440447,-686.41,0.00018219,2]
[350937828,1738223440457,-500.0,0.00018219,2]
[350937830,1738223440467,-901.84,0.00018219,2]
[350937831,1738223440477,-670.07,0.00018219,2]
[350937833,1738223440487,-548.98,0.00018219,2]
[350937834,1738223440496,-500.0,0.00018219,2]
[350937836,1738223440506,-561.63,0.00018219,2]
[350937838,1738223440516,-1600.68,0.00018219,2]
[350937839,1738223440525,-4259.83,0.00018219,2]
[350937841,1738223440535,-1252.06,0.00018219,2]
[350937843,1738223440545,-2536.89,0.00018219,2]
[350937844,1738223440556,-500.0,0.00018219,2]
[350937846,1738223440565,-563.91845873,0.00018219,2]
[350937847,1738223440574,-500.0,0.00018219,2]
[350937849,1738223440584,-937.5,0.00018219,2]
[350937851,1738223440594,-761.09,0.00018219,2]
[350937852,1738223440604,-625.71,0.00018219,2]
[350937854,1738223440614,-500.0,0.00018219,2]
[350937855,1738223440623,-500.0,0.00018219,2]
[350937857,1738223440632,-1130.54,0.00018219,2]
[350937858,1738223440642,-575.46,0.00018219,2]
[350937860,1738223440652,-221.32,0.00018219,2]
[350937862,1738223440662,-500.0,0.00018219,2]
[350937863,1738223440671,-343.6104596,0.00018219,2]
[350937865,1738223440681,-666.57,0.00018219,2]
[350937867,1738223440690,-10753.13,0.00018219,2]
[350937868,1738223440700,-906.16,0.00018219,2]
[350937870,1738223440710,-629.52,0.00018219,2]
[350937872,1738223440719,-1352.79,0.00018219,2]
[350937873,1738223440729,-500.0,0.00018219,2]
[350937875,1738223440739,-1675.0,0.000183,2]
[350937876,1738223440748,-151.0,0.000183,2]
[350937878,1738223440758,-151.0,0.000183,2]
[350937880,1738223440768,-913.17,0.00018356,2]
[350937881,1738223440778,-2368.31,0.00018356,2]
[350937883,1738223440788,-500.0,0.00018356,2]
[350937885,1738223440797,-686.41,0.00018356,2]
[350937886,1738223440807,-500.0,0.00018356,2]
[350937888,1738223440816,-901.84,0.00018356,2]
[350937889,1738223440825,-670.07,0.00018356,2]
[350937891,1738223440834,-548.98,0.00018356,2]
[350937892,1738223440844,-500.0,0.00018356,2]
[350937894,1738223440853,-561.63,0.00018356,2]
[350937896,1738223440863,-1600.68,0.00018356,2]
[350937897,1738223440872,-4259.83,0.00018356,2]
[350937899,1738223440881,-1252.06,0.00018356,2]
[350937900,1738223440891,-2536.89,0.00018356,2]
[350937902,1738223440900,-500.0,0.00018356,2]
[350937904,1738223440909,-500.0,0.00018356,2]
[350937905,1738223440919,-937.5,0.00018356,2]
[350937907,1738223440928,-761.09,0.00018356,2]
[350937908,1738223440937,-625.71,0.00018356,2]
[350937910,1738223440947,-500.0,0.00018356,2]
[350937912,1738223440955,-484.24838081,0.00018356,2]
[350937913,1738223440965,-1130.54,0.00018356,2]
[350937915,1738223440975,-575.46,0.00018356,2]
[350937916,1738223440985,-500.0,0.00018356,2]
[350937918,1738223440994,-666.57,0.00018356,2]
[350937920,1738223441004,-10753.13,0.00018356,2]
[350937922,1738223441014,-906.16,0.00018356,2]
[350937924,1738223441023,-629.52,0.00018356,2]
[350937926,1738223441033,-1352.79,0.00018356,2]
[350937928,1738223441043,-500.0,0.00018356,2]
[350937930,1738223441055,-151.0,0.000184,2]
[350937932,1738223441065,-250.0,0.00018438,2]
[350937933,1738223441074,-913.17,0.00018493,2]
[350937934,1738223441084,-2368.31,0.00018493,2]
[350937935,1738223441095,-500.0,0.00018493,2]
[350937936,1738223441104,-686.41,0.00018493,2]
[350937937,1738223441113,-474.62818455,0.00018493,2]
[350937938,1738223441123,-901.84,0.00018493,2]
[350937939,1738223441134,-670.07,0.00018493,2]
[350937940,1738223441144,-548.98,0.00018493,2]
[350937941,1738223441153,-500.0,0.00018493,2]
[350937942,1738223441163,-561.63,0.00018493,2]
[350937943,1738223441172,-1600.68,0.00018493,2]